bitfinex-derivatives/quotes_BTCF0:USTF0_20250422
["timestamp","ask_amount","ask_price","bid_price","bid_amount"]
[1745336694533,0.00808584,90582.0,90581.0,1.315017]
[1745336694741,0.00808584,90582.0,90581.0,1.565017]
[1745336694934,0.00808584,90582.0,90581.0,1.566017]
[1745336695634,0.00808584,90582.0,90581.0,0.832537]
[1745336695834,0.01808584,90582.0,90581.0,0.50608]
[1745336696142,0.00808584,90582.0,90581.0,0.582537]
[1745336696344,0.00808584,90582.0,90581.0,0.976817]
[1745336696541,0.00808584,90582.0,90581.0,0.726817]
[1745336697042,0.00808584,90582.0,90581.0,0.582537]
[1745336697241,0.01808584,90582.0,90581.0,0.3618]
[1745336697446,0.01808584,90582.0,90581.0,0.001]
[1745336697833,0.26808584,90582.0,90569.0,0.14428]
[1745336698046,0.31799397,90580.0,90571.0,0.1103528]
[1745336698248,0.31799397,90580.0,90567.0,0.0551785]
[1745336698249,0.3608,90572.0,90544.0,0.14348]
[1745336698543,0.3608,90554.0,90553.0,0.1655621]
[1745336698743,0.3808,90554.0,90553.0,0.15727766]
[1745336699245,0.02,90554.0,90553.0,0.15727766]
[1745336699839,0.4059,90554.0,90553.0,0.15727766]
[1745336700045,0.4059,90554.0,90553.0,0.15027766]
[1745336700644,0.4069,90554.0,90553.0,0.15727766]
[1745336700944,0.3569,90554.0,90553.0,0.15727766]
[1745336701145,0.3869,90554.0,90553.0,0.15727766]
[1745336701347,0.5865,90554.0,90551.0,0.0551882]
[1745336701647,0.5865,90554.0,90553.0,0.1103751]
[1745336701944,0.5875,90554.0,90553.0,0.1163751]
[1745336702149,0.5875,90554.0,90544.0,0.14364562]
[1745336702336,0.3608,90551.0,90544.0,0.14364562]
[1745336702537,0.1981,90550.0,90549.0,0.11038]
[1745336702743,0.2481,90550.0,90549.0,0.11038]
[1745336704250,0.4401,90550.0,90549.0,0.11038]
[1745336704748,0.2006,90554.0,90553.0,0.1103751]
[1745336704950,0.3106,90554.0,90553.0,0.1103751]
[1745336705248,0.3096,90554.0,90553.0,0.1093751]
[1745336705462,0.3096,90554.0,90550.0,0.0551893]
[1745336705463,0.08639071,90565.0,90562.0,0.1103641]
[1745336705751,0.05016562,90563.0,90554.0,0.3608]
[1745336705946,0.001,90550.0,90519.0,0.3608]
[1745336706149,0.41992303,90540.0,90539.0,0.1103921]
[1745336706454,0.3608,90541.0,90540.0,0.1103909]
[1745336706645,0.4908,90541.0,90540.0,0.1103909]
[1745336707141,0.6828,90541.0,90540.0,0.1103909]
[1745336707749,0.6828,90541.0,90540.0,0.1033909]
[1745336708050,0.4908,90541.0,90540.0,0.1033909]
[1745336708252,0.13,90541.0,90540.0,0.1033909]
[1745336708553,0.131,90541.0,90540.0,0.1083909]
[1745336708747,0.00016562,90550.0,90547.0,0.0551907]
[1745336708947,0.04016562,90550.0,90549.0,0.11038]
[1745336709148,0.04016562,90550.0,90549.0,0.30019572]
[1745336709347,2e-08,90550.0,90549.0,0.30019572]
[1745336710153,0.00100002,90550.0,90549.0,0.44371572]
[1745336711456,0.00100002,90550.0,90549.0,0.44471572]
[1745336712260,0.187,90558.0,90557.0,0.1103702]
[1745336712457,0.3608,90595.0,90568.0,0.1103568]
[1745336712752,0.3608,90595.0,90581.0,0.110341]
[1745336712953,0.3679,90594.0,90588.0,0.110332]
[1745336713157,0.3679,90594.0,90589.0,0.1103307]
[1745336713358,0.3679,90594.0,90590.0,0.1823]
[1745336713559,0.3679,90594.0,90590.0,0.2926299]
[1745336713760,0.37630004,90594.0,90590.0,0.1823]
[1745336713958,0.37630004,90594.0,90593.0,0.1103263]
[1745336714159,0.37630004,90594.0,90593.0,0.1083263]
[1745336715156,0.38230004,90594.0,90593.0,0.1043263]
[1745336715352,0.01440004,90594.0,90593.0,0.1043263]
[1745336715551,0.00016562,90601.0,90595.0,0.0551618]
[1745336715751,0.00016562,90601.0,90600.0,0.1103178]
[1745336715950,0.00016562,90601.0,90600.0,0.1043178]
[1745336716957,0.0083553,90601.0,90600.0,0.1043178]
[1745336717253,0.00016562,90601.0,90600.0,0.1043178]
[1745336717455,0.00316562,90601.0,90600.0,0.1043178]
[1745336718358,0.00516562,90601.0,90600.0,0.1043178]
[1745336718750,0.00316562,90601.0,90600.0,0.1043178]
[1745336718955,0.00516562,90601.0,90600.0,0.1043178]
[1745336719459,0.01349943,90601.0,90600.0,0.1043178]
[1745336719659,0.01349943,90601.0,90600.0,0.2477978]
[1745336720055,0.01349943,90601.0,90600.0,0.23951851]
[1745336721457,0.3932,90617.0,90616.0,0.1102983]
[1745336721660,0.40163901,90617.0,90616.0,0.1102983]
[1745336722056,0.3608,90627.0,90626.0,0.1102862]
[1745336723362,0.7293327,90627.0,90616.0,0.001]
[1745336723555,0.3608,90618.0,90616.0,0.001]
[1745336723757,0.1933,90617.0,90616.0,0.1112983]
[1745336724057,0.1983,90617.0,90616.0,0.1112983]
[1745336724449,0.0895546,90617.0,90616.0,0.4720983]
[1745336724655,0.3689887,90627.0,90626.0,0.1102862]
[1745336724849,0.3689887,90627.0,90626.0,0.1082862]
[1745336725351,0.3689887,90627.0,90626.0,0.1012862]
[1745336725660,0.3689887,90627.0,90626.0,0.4721862]
[1745336726060,0.3689887,90627.0,90626.0,0.4741862]
[1745336726668,0.3689887,90627.0,90626.0,0.2870862]
[1745336726863,0.3689887,90627.0,90626.0,0.1122862]
[1745336728052,0.3689887,90627.0,90626.0,0.1112862]
[1745336728461,0.3689887,90627.0,90626.0,0.4863862]
[1745336729261,0.3689887,90627.0,90626.0,0.4873862]
[1745336730152,0.0081887,90627.0,90626.0,0.4873862]
[1745336730355,0.41992303,90660.0,90629.0,0.055141]
[1745336730665,0.41992303,90660.0,90629.0,0.0551411]
[1745336730963,0.189211,90658.0,90632.0,0.3608]
[1745336731159,0.189211,90658.0,90657.0,0.1102485]
[1745336731663,0.741315,90658.0,90648.0,0.00016553]
[1745336731863,0.78072303,90651.0,90650.0,0.1653853]
[1745336732066,0.3608,90651.0,90650.0,0.1653853]
[1745336732659,0.1846,90657.0,90656.0,0.1102497]
[1745336733165,0.3671,90657.0,90656.0,0.1102497]
[1745336734058,0.3671,90657.0,90656.0,0.1082497]
[1745336734761,0.3681,90657.0,90656.0,0.1082497]
[1745336735159,0.3711,90657.0,90656.0,0.1082497]
[1745336735461,1e-07,90658.0,90657.0,0.1102485]
[1745336735665,0.3926,90670.0,90658.0,0.1102472]
[1745336735965,0.3926,90670.0,90658.0,0.2964472]
[1745336736265,1e-07,90659.0,90658.0,0.2964472]
[1745336736974,0.3608,90671.0,90666.0,0.1102375]
[1745336737267,0.3608,90671.0,90666.0,0.2528375]
[1745336737471,0.3926,90670.0,90666.0,0.2528375]
[1745336737665,0.3926,90670.0,90666.0,0.2508375]
[1745336737865,0.3926,90670.0,90666.0,0.6233375]
[1745336738060,0.00842865,90667.0,90666.0,0.6233375]
[1745336738259,0.01042865,90667.0,90666.0,0.6233375]
[1745336739065,0.30357388,90703.0,90666.0,1.23619599]
[1745336739266,0.5596,90699.0,90698.0,0.1101986]
[1745336739661,0.7996,90699.0,90697.0,0.1824]
[1745336739876,0.7996,90699.0,90696.0,0.0551002]
[1745336740071,0.7996,90699.0,90698.0,0.1101986]
[1745336741461,0.4233,90699.0,90698.0,0.1101986]
[1745336741681,0.4253,90699.0,90698.0,0.1101986]
[1745336741862,0.7879,90699.0,90698.0,0.1101986]
[1745336743279,0.7879,90699.0,90698.0,0.1041986]
[1745336744878,0.7879,90699.0,90698.0,0.1091986]
[1745336745074,0.7859,90699.0,90698.0,0.1091986]
[1745336745279,1.506956,90699.0,90685.0,1e-08]
[1745336745474,0.3608,90686.0,90685.0,0.1102144]
[1745336745778,0.6208,90686.0,90685.0,0.1102144]
[1745336745969,0.731072,90686.0,90685.0,0.1102144]
[1745336746370,0.731072,90686.0,90672.0,0.02546971]
[1745336746571,0.3608,90673.0,90672.0,0.165345]
[1745336746779,0.62108801,90673.0,90670.0,0.00016541]
[1745336747075,0.67098801,90672.0,90671.0,0.1102314]
[1745336747276,1.30178801,90672.0,90671.0,0.1102314]
[1745336747875,1.1915,90672.0,90671.0,0.1102314]
[1745336748575,1.1925,90672.0,90671.0,0.1102314]
[1745336748775,0.8317,90672.0,90671.0,0.4843314]
[1745336749080,0.8337,90672.0,90671.0,0.4843314]
[1745336750274,0.8337,90672.0,90667.0,0.00496322]
[1745336750475,0.3608,90668.0,90667.0,0.11519952]
[1745336750669,0.4408,90668.0,90667.0,0.11519952]
[1745336751068,0.4408,90668.0,90667.0,0.10819952]
[1745336751467,0.551092,90668.0,90661.0,0.02468238]
[1745336751769,0.3812,90667.0,90653.0,0.1876]
[1745336751971,0.6512,90667.0,90655.0,0.08073108]
[1745336752272,0.6512,90667.0,90653.0,0.1876]
[1745336752474,0.110296,90666.0,90616.0,0.1979758]
[1745336752680,0.41892303,90658.0,90630.0,0.14252]
[1745336752975,0.7216,90649.0,90639.0,0.1102692]
[1745336753178,0.9916,90649.0,90639.0,0.11027]
[1745336753474,1.101916,90649.0,90642.0,0.1102661]
[1745336753675,0.3871,90648.0,90643.0,0.1102652]
[1745336753977,0.6771,90648.0,90645.0,0.1102622]
[1745336754177,0.6771,90648.0,90643.0,0.1102643]
[1745336754365,0.6771,90648.0,90644.0,0.1102639]
[1745336754574,0.6771,90648.0,90643.0,0.0551325]
[1745336754779,0.6771,90648.0,90645.0,0.0551315]
[1745336755076,0.6771,90648.0,90645.0,0.1132625]
[1745336755376,0.6771,90648.0,90645.0,0.003]
[1745336755576,0.6771,90648.0,90643.0,0.0561326]
[1745336755776,0.6771,90648.0,90645.0,0.1102623]
[1745336756077,0.6771,90648.0,90644.0,0.0551321]
[1745336756479,0.78742,90648.0,90647.0,0.1102606]
[1745336757373,0.78942,90648.0,90647.0,0.1102606]
[1745336757580,0.79342,90648.0,90647.0,0.1102606]
[1745336757882,0.79242,90648.0,90647.0,0.1102606]
[1745336758377,0.79042,90648.0,90647.0,0.1102606]
[1745336758678,0.090868,90648.0,90647.0,0.1102606]
[1745336758877,0.00016541,90653.0,90652.0,0.1032545]
[1745336759080,0.01000001,90653.0,90652.0,0.1032545]
[1745336759276,0.03,90667.0,90666.0,0.1102375]
[1745336759583,0.06,90667.0,90666.0,0.1102375]
[1745336759780,0.4208,90667.0,90666.0,0.1102375]
[1745336760176,0.4208,90667.0,90666.0,0.1092375]
[1745336761377,0.531096,90667.0,90666.0,0.004]
[1745336761587,0.531096,90667.0,90666.0,0.007]
[1745336761876,0.781096,90667.0,90624.0,0.5467]
[1745336762076,0.3608,90639.0,90624.0,0.3608]
[1745336762279,0.5757,90638.0,90625.0,0.3783]
[1745336762477,0.8057,90638.0,90637.0,0.1102728]
[1745336762878,0.91602801,90638.0,90637.0,0.1102728]
[1745336763079,0.424,90638.0,90637.0,0.1102728]
[1745336763269,0.23,90638.0,90637.0,0.4815728]
[1745336763469,0.23,90638.0,90637.0,0.4825728]
[1745336763675,0.5908,90638.0,90637.0,0.4825728]
[1745336764679,0.5908,90638.0,90637.0,0.4835728]
[1745336765182,0.5908,90638.0,90637.0,0.4825728]
[1745336765377,0.5908,90638.0,90637.0,0.4815728]
[1745336766282,0.5908,90638.0,90635.0,0.0551371]
[1745336766283,0.5908,90638.0,90630.0,0.0551405]
[1745336766480,0.5557,90637.0,90631.0,0.1884]
[1745336766678,0.7157,90637.0,90636.0,0.103274]
[1745336767879,0.7157,90637.0,90628.0,0.05530711]
[1745336767880,0.82803201,90637.0,90624.0,0.02492847]
[1745336768075,0.0551446,90624.0,90612.0,0.3809]
[1745336768273,0.3608,90613.0,90612.0,0.4912032]
[1745336768474,0.4308,90613.0,90612.0,0.4912032]
[1745336768678,0.09,90627.0,90623.0,0.0551444]
[1745336768883,0.3608,90634.0,90633.0,0.1102777]
[1745336769072,0.6408,90634.0,90633.0,0.1102777]
[1745336769676,0.6408,90634.0,90633.0,0.4903777]
[1745336770478,0.6408,90634.0,90633.0,0.4913777]
[1745336770881,0.6408,90634.0,90633.0,0.4903777]
[1745336771079,0.6408,90634.0,90633.0,0.4923777]
[1745336771584,0.6408,90634.0,90633.0,0.4933777]
[1745336771985,0.6408,90634.0,90633.0,0.1957]
[1745336772186,0.0551388,90633.0,90625.0,0.110287]
[1745336772487,0.3608,90626.0,90618.0,0.1975]
[1745336772789,0.3608,90626.0,90608.0,0.05680891]
[1745336772790,0.055148,90618.0,90614.0,0.1103005]
[1745336773085,0.3608,90615.0,90614.0,0.1103008]
[1745336773383,0.6208,90615.0,90609.0,0.17100278]
[1745336773578,0.1103027,90613.0,90612.0,0.09650184]
[1745336773781,0.3703027,90613.0,90612.0,0.09650184]
[1745336773977,0.6217,90613.0,90612.0,0.09650184]
[1745336774387,0.732002,90613.0,90612.0,0.08950184]
[1745336774881,0.732002,90613.0,90607.0,0.0049665]
[1745336774882,0.0551516,90612.0,90607.0,0.0049665]
[1745336775183,0.3608,90608.0,90607.0,0.1704303]
[1745336775384,0.5108,90608.0,90607.0,0.1704303]
[1745336776686,0.5108,90608.0,90607.0,0.3656303]
[1745336776885,0.5108,90608.0,90607.0,0.3706303]
[1745336777186,0.15,90608.0,90607.0,0.3706303]
[1745336777389,0.15830226,90608.0,90607.0,0.3706303]
[1745336777690,0.15830226,90608.0,90607.0,0.3726303]
[1745336778189,0.51910226,90608.0,90607.0,0.3726303]
[1745336778386,0.15830226,90608.0,90607.0,0.3726303]
[1745336778592,0.51910226,90608.0,90607.0,0.3726303]
[1745336782195,0.51910226,90608.0,90607.0,0.3656303]
[1745336782686,0.15830226,90608.0,90607.0,0.3656303]
[1745336782894,0.08629255,90629.0,90617.0,0.0551483]
[1745336783092,0.0680122,90629.0,90628.0,0.10200612]
[1745336783586,0.005,90629.0,90628.0,0.4706237]
[1745336783780,0.3528,90647.0,90646.0,0.1102618]
[1745336783989,0.3528,90647.0,90642.0,0.2520663]
[1745336784188,0.3528,90647.0,90645.0,0.1102626]
[1745336784490,0.3528,90647.0,90646.0,0.2982618]
[1745336784993,0.36092733,90647.0,90646.0,0.188]
[1745336785297,0.36092733,90647.0,90646.0,0.2982618]
[1745336785489,0.00812733,90647.0,90646.0,0.2982618]
[1745336785691,0.00016551,90656.0,90655.0,0.1102509]
[1745336786291,0.00016551,90656.0,90655.0,0.1092509]
[1745336786683,0.00316551,90656.0,90655.0,0.1092509]
[1745336787289,0.00954705,90656.0,90655.0,0.1092509]
[1745336787497,0.00116551,90656.0,90648.0,0.1418]
[1745336787792,0.3608,90650.0,90648.0,0.1418]
[1745336787989,0.3816,90649.0,90648.0,0.1418]
[1745336788189,0.3816,90649.0,90648.0,0.2520594]
[1745336788581,0.3816,90649.0,90648.0,0.4360594]
[1745336788989,0.1946,90649.0,90648.0,0.4360594]
[1745336789190,0.1946,90649.0,90648.0,0.4370594]
[1745336789689,0.5554,90649.0,90648.0,0.4370594]
[1745336789891,0.5554,90649.0,90648.0,0.4290594]
[1745336790086,0.5554,90649.0,90648.0,0.4320594]
[1745336790590,0.3608,90649.0,90648.0,0.4320594]
[1745336790788,0.3608,90649.0,90648.0,0.4290594]
[1745336790991,0.00837625,90656.0,90655.0,0.1102509]
[1745336791293,0.00837625,90656.0,90655.0,0.1072509]
[1745336791895,0.00837625,90656.0,90655.0,0.2884509]
[1745336792593,0.00837625,90656.0,90655.0,0.1072509]
[1745336792793,0.01037625,90656.0,90655.0,0.09345613]
[1745336793191,0.00837625,90656.0,90655.0,0.09345613]
[1745336793496,0.01037625,90656.0,90655.0,0.05869038]
[1745336793698,0.12068425,90656.0,90655.0,0.05869038]
[1745336793893,0.01037625,90656.0,90655.0,0.05869038]
[1745336794602,0.01037625,90656.0,90655.0,0.25769038]
[1745336794991,0.00937625,90656.0,90655.0,0.25769038]
[1745336796300,0.00937625,90656.0,90655.0,0.05869038]
[1745336796691,0.11968425,90656.0,90653.0,0.1102531]
[1745336796895,0.3793,90655.0,90654.0,0.1102521]
[1745336797095,0.489608,90655.0,90654.0,0.1102521]
[1745336797400,0.850408,90655.0,90654.0,0.1102521]
[1745336797800,0.850408,90655.0,90654.0,0.1032521]
[1745336798903,0.7401,90655.0,90654.0,0.1032521]
[1745336799100,0.3608,90655.0,90654.0,0.1032521]
[1745336799302,0.3608,90655.0,90653.0,0.1854]
[1745336799303,0.00837625,90656.0,90655.0,0.1092509]
[1745336799603,0.08837625,90656.0,90655.0,0.1092509]
[1745336799795,0.08837625,90656.0,90655.0,0.2946509]
[1745336800203,0.08837625,90656.0,90655.0,0.1082509]
[1745336800393,0.44917625,90656.0,90655.0,0.1082509]
[1745336800700,0.44917625,90656.0,90642.0,0.0551327]
[1745336800893,0.3608,90654.0,90645.0,0.1922]
[1745336801092,0.3711,90653.0,90652.0,0.1102545]
[1745336801290,0.4511,90653.0,90652.0,0.1102545]
[1745336801598,0.4511,90653.0,90648.0,0.1102584]
[1745336801791,0.4511,90653.0,90649.0,0.110258]
[1745336801998,0.4511,90653.0,90646.0,0.0551303]
[1745336801999,0.4511,90653.0,90638.0,0.1854]
[1745336802300,0.3608,90645.0,90644.0,0.1102643]
[1745336802598,0.6508,90645.0,90644.0,0.1102643]
[1745336803397,0.6508,90645.0,90637.0,0.00016551]
[1745336803600,0.3608,90638.0,90637.0,0.1102728]
[1745336803791,0.4408,90638.0,90637.0,0.1102728]
[1745336804105,0.66139961,90638.0,90637.0,0.1102728]
[1745336804290,1.05112801,90638.0,90637.0,0.1102728]
[1745336804897,1.23652801,90638.0,90637.0,0.1102728]
[1745336805094,1.34679991,90638.0,90635.0,0.055137]
[1745336805295,0.2996728,90637.0,90634.0,0.1102759]
[1745336805494,0.1102742,90636.0,90632.0,0.055139]
[1745336805698,0.3608,90633.0,90620.0,0.0551464]
[1745336806001,0.31720532,90630.0,90623.0,0.0551449]
[1745336806198,0.3608,90624.0,90621.0,0.1944]
[1745336806399,0.5536,90623.0,90622.0,0.110291]
[1745336806592,0.6236,90623.0,90622.0,0.110291]
[1745336806794,0.6236,90623.0,90608.0,0.0551539]
[1745336806996,0.3608,90609.0,90605.0,0.1944]
[1745336807198,0.3718,90608.0,90607.0,0.1152758]
[1745336807403,0.4218,90608.0,90607.0,0.1152758]
[1745336807602,0.7826,90608.0,90607.0,0.1152758]
[1745336807799,0.79092303,90608.0,90607.0,0.14067274]
[1745336807995,0.05832303,90608.0,90607.0,0.14067274]
[1745336808396,0.55832303,90608.0,90607.0,0.33507274]
[1745336808798,0.45167091,90608.0,90607.0,0.69544074]
[1745336808995,0.39278872,90608.0,90607.0,0.69544074]
[1745336809196,0.34870872,90608.0,90607.0,0.70144074]
[1745336809401,0.34870872,90608.0,90607.0,2.20144074]
[1745336809901,0.03823031,90608.0,90607.0,0.69844074]
[1745336810096,0.03823031,90608.0,90607.0,0.69944074]
[1745336810302,0.03823031,90608.0,90607.0,2.20444074]
[1745336810902,0.02847031,90608.0,90607.0,2.20444074]
[1745336811500,0.02847031,90608.0,90607.0,0.70444074]
[1745336811708,0.02847031,90608.0,90607.0,0.69944074]
[1745336811906,0.02847031,90608.0,90607.0,0.70344074]
[1745336812309,0.02847031,90608.0,90607.0,0.23276344]
[1745336812503,0.02847031,90608.0,90607.0,0.23476344]
[1745336812804,0.02847031,90608.0,90607.0,0.34507274]
[1745336813003,0.38927031,90608.0,90607.0,0.34007274]
[1745336813203,0.38927031,90608.0,90607.0,0.33707274]
[1745336813508,0.88927031,90608.0,90607.0,0.53317274]
[1745336813703,0.88927031,90608.0,90607.0,0.52817274]
[1745336813899,0.88927031,90608.0,90607.0,0.53117274]
[1745336814100,0.52847031,90608.0,90607.0,0.52289296]
[1745336814301,0.52847031,90608.0,90607.0,0.88326096]
[1745336814504,0.00016551,90617.0,90616.0,0.1102983]
[1745336814703,0.02,90617.0,90616.0,0.4710983]
[1745336815011,0.04748677,90632.0,90631.0,0.1102801]
[1745336815306,0.00022263,90667.0,90646.0,0.0551305]
[1745336815506,0.045,90659.0,90658.0,0.1052472]
[1745336816310,0.545,90659.0,90658.0,0.1052472]
[1745336816503,0.545,90659.0,90658.0,0.4803472]
[1745336816700,0.546,90659.0,90658.0,0.4803472]
[1745336816909,0.55442787,90659.0,90658.0,0.6212672]
[1745336817406,0.55442787,90659.0,90658.0,0.75704995]
[1745336817805,0.52141774,90659.0,90658.0,0.75704995]
[1745336818009,0.52141774,90659.0,90658.0,0.61612995]
[1745336818206,0.52141774,90659.0,90658.0,0.64670595]
[1745336820404,0.52141774,90659.0,90658.0,1.11780995]
[1745336821007,0.52141774,90659.0,90658.0,1.11080995]
[1745336822303,0.52141774,90659.0,90658.0,0.99966595]
[1745336822706,0.52041774,90659.0,90658.0,1.00366595]
[1745336822912,0.52041774,90659.0,90658.0,0.50282595]
[1745336823106,0.52041774,90659.0,90658.0,0.64286595]
[1745336823707,0.52041774,90659.0,90658.0,0.64086595]
[1745336823906,0.52041774,90659.0,90658.0,0.64286595]
[1745336824307,0.52041774,90659.0,90658.0,0.75316995]
[1745336824815,0.45139354,90659.0,90658.0,0.75116995]
[1745336825114,0.45139354,90659.0,90658.0,0.75316995]
[1745336825309,0.29408774,90659.0,90658.0,0.74589602]
[1745336825510,0.00842787,90659.0,90658.0,0.74689602]
[1745336825717,1e-08,90668.0,90667.0,0.1102363]
[1745336825911,1e-08,90668.0,90667.0,0.4710363]
[1745336826108,1e-08,90668.0,90667.0,0.58132829]
[1745336826505,1e-08,90668.0,90667.0,0.94642829]
[1745336827005,1e-08,90668.0,90667.0,0.8411363]
[1745336827214,1e-08,90668.0,90667.0,0.95142829]
[1745336827811,1e-08,90668.0,90667.0,0.59062829]
[1745336828513,1e-08,90668.0,90667.0,0.95142829]
[1745336828817,1e-08,90668.0,90667.0,0.95542829]
[1745336829112,1e-08,90668.0,90667.0,0.95342829]
[1745336829413,1e-08,90668.0,90667.0,0.95142829]
[1745336831007,0.00016551,90677.0,90667.0,0.95142829]
[1745336831209,5e-08,90689.0,90688.0,0.1102108]
[1745336831521,2e-08,90700.0,90699.0,0.1101974]
[1745336831707,0.1925,90729.0,90699.0,0.58125339]
[1745336831907,0.1969,90728.0,90727.0,0.1101634]
[1745336832724,0.67481,90728.0,90727.0,0.1101634]
[1745336833113,0.68288698,90728.0,90727.0,0.1101634]
[1745336833614,0.68588698,90728.0,90727.0,0.1031634]
[1745336834013,0.68588698,90728.0,90727.0,0.1081634]
[1745336834621,1.24410699,90728.0,90724.0,0.0550833]
[1745336834917,0.29482001,90727.0,90726.0,0.1101646]
[1745336835108,0.1846,90727.0,90726.0,0.1101646]
[1745336835313,0.1846,90727.0,90726.0,0.10189463]
[1745336835920,0.3832,90727.0,90726.0,0.10189463]
[1745336836517,0.8832,90727.0,90726.0,0.10489463]
[1745336836923,0.8832,90727.0,90726.0,0.10789463]
[1745336838023,0.8832,90727.0,90726.0,0.14098718]
[1745336838221,0.8832,90727.0,90726.0,0.13798718]
[1745336838416,0.8832,90727.0,90726.0,0.14098718]
[1745336838621,0.8832,90727.0,90726.0,0.13798718]
[1745336838819,0.8832,90727.0,90726.0,0.13498718]
[1745336839020,0.6627013,90727.0,90726.0,0.13898718]
[1745336839231,0.5688527,90727.0,90726.0,0.13898718]
[1745336839522,0.20607698,90728.0,90726.0,0.13898718]
[1745336839523,0.20607698,90728.0,90727.0,0.1101634]
[1745336839728,0.0001654,90737.0,90736.0,0.1101525]
[1745336840617,0.0001654,90737.0,90736.0,0.3093525]
[1745336840819,0.3658,90749.0,90748.0,0.1101379]
[1745336840820,1e-07,90749.0,90748.0,0.1101379]
[1745336841022,1e-07,90749.0,90748.0,0.6108579]
[1745336841415,0.5000001,90749.0,90748.0,0.6038579]
[1745336842423,0.8608001,90749.0,90748.0,0.14192]
[1745336842618,0.8608001,90749.0,90748.0,0.2520579]
[1745336843022,0.8608001,90749.0,90748.0,0.1121379]
[1745336843218,0.8608001,90749.0,90748.0,0.1131379]
[1745336844326,0.8608001,90749.0,90748.0,0.1111379]
[1745336844531,0.86926882,90749.0,90748.0,0.1121379]
[1745336846215,0.50846882,90749.0,90748.0,0.1121379]
[1745336846416,0.50846882,90749.0,90748.0,0.002]
[1745336846620,0.86926882,90749.0,90748.0,0.002]
[1745336847022,0.86926882,90749.0,90748.0,0.1121379]
[1745336848421,0.86926882,90749.0,90741.0,0.13988]
[1745336848422,0.97946482,90749.0,90741.0,0.13988]
[1745336848731,0.194,90748.0,90747.0,0.1101391]
[1745336848934,0.3846,90748.0,90747.0,0.1101391]
[1745336849118,0.494796,90748.0,90747.0,0.1031391]
[1745336849732,0.494796,90748.0,90741.0,0.002]
[1745336849924,0.3608,90744.0,90726.0,0.17297255]
[1745336850231,0.3608,90727.0,90726.0,0.33821905]
[1745336851626,0.185,90735.0,90734.0,0.1101549]
[1745336852235,0.185,90735.0,90734.0,0.4800549]
[1745336852939,0.185,90735.0,90734.0,0.4820549]
[1745336853327,0.685,90735.0,90734.0,0.4820549]
[1745336853534,0.685,90735.0,90734.0,0.4840549]
[1745336855135,0.5,90735.0,90734.0,0.4840549]
[1745336855531,0.5,90735.0,90734.0,0.4820549]
[1745336855731,0.5,90735.0,90734.0,0.4850549]
[1745336855928,0.5,90735.0,90734.0,0.4860549]
[1745336856123,0.5,90735.0,90734.0,0.006]
[1745336856430,0.6809,90735.0,90734.0,0.1161549]
[1745336856734,0.5,90735.0,90734.0,0.1161549]
[1745336856930,0.5,90735.0,90734.0,0.1091549]
[1745336857326,0.5,90735.0,90734.0,0.4957549]
[1745336858034,0.5,90735.0,90734.0,0.4987549]
[1745336858431,0.5,90735.0,90734.0,0.4957549]
[1745336858631,0.5,90735.0,90734.0,0.5007549]
[1745336859037,0.5,90735.0,90734.0,0.5047549]
[1745336859632,0.57,90735.0,90734.0,0.5047549]
[1745336861038,0.57,90735.0,90734.0,0.8655549]
[1745336861234,0.57,90735.0,90734.0,0.8615549]
[1745336861834,0.57,90735.0,90734.0,0.8565549]
[1745336862034,0.57,90735.0,90734.0,0.4987549]
[1745336862638,0.57,90735.0,90734.0,0.4977549]
[1745336862942,0.48064863,90735.0,90734.0,0.8605549]
[1745336863131,0.09492862,90735.0,90734.0,1.2207669]
[1745336863335,0.10846872,90749.0,90742.0,0.0550722]
[1745336863634,0.04380982,90749.0,90748.0,0.4709379]
[1745336864344,0.05227378,90749.0,90743.0,0.3788]
[1745336864638,0.3608,90745.0,90744.0,0.0480714]
[1745336864842,0.4808,90745.0,90744.0,0.4268714]
[1745336865333,0.62,90745.0,90744.0,0.4268714]
[1745336866341,0.621,90745.0,90744.0,0.4268714]
[1745336867039,0.8123,90745.0,90744.0,0.40482415]
[1745336867438,0.621,90745.0,90744.0,0.40482415]
[1745336867936,0.62,90745.0,90744.0,0.40482415]
[1745336868839,0.621,90745.0,90744.0,0.40482415]
[1745336870537,0.621,90745.0,90744.0,0.40582415]
[1745336870833,0.62,90745.0,90744.0,0.40582415]
[1745336872340,0.62,90745.0,90744.0,0.76662415]
[1745336872536,0.3022091,90745.0,90744.0,0.76662415]
[1745336872735,0.0832001,90745.0,90744.0,0.76662415]
[1745336872941,6e-08,90749.0,90748.0,0.1101379]
[1745336873244,0.2,90763.0,90757.0,0.100427]
[1745336873541,0.24823044,90758.0,90757.0,0.461227]
[1745336873733,0.24016531,90758.0,90757.0,0.840327]
[1745336874339,0.74016531,90758.0,90757.0,0.840327]
[1745336874540,0.73316531,90758.0,90757.0,0.840327]
[1745336874743,0.74127756,90758.0,90757.0,0.840327]
[1745336875234,0.74127756,90758.0,90757.0,0.843327]
[1745336875836,0.74127756,90758.0,90757.0,0.81687567]
[1745336876043,0.74127756,90758.0,90757.0,0.81387567]
[1745336876344,0.74127756,90758.0,90741.0,0.0550727]
[1745336876345,1.10207756,90758.0,90751.0,0.055067]
[1745336876539,0.3787,90757.0,90756.0,0.1101282]
[1745336876739,0.6187,90757.0,90756.0,0.1101282]
[1745336877144,0.6187,90757.0,90755.0,0.110129]
[1745336877340,0.728888,90757.0,90749.0,0.139]
[1745336877653,0.6187,90757.0,90756.0,0.1101282]
[1745336878040,0.728884,90757.0,90756.0,0.1101282]
[1745336878549,0.732884,90757.0,90756.0,0.1101282]
[1745336879451,1.231884,90757.0,90756.0,0.1101282]
[1745336879944,1.231884,90757.0,90756.0,0.09634983]
[1745336880948,1.231884,90757.0,90756.0,0.08934983]
[1745336881148,1.231884,90757.0,90740.0,0.13812]
[1745336881349,0.31720532,90750.0,90749.0,0.1652046]
[1745336881543,0.6008,90750.0,90749.0,0.1652046]
[1745336881746,0.710992,90750.0,90749.0,0.1652046]
[1745336882642,0.711992,90750.0,90749.0,0.1652046]
[1745336883046,1.211992,90750.0,90749.0,0.1652046]
[1745336883353,1.211992,90750.0,90737.0,0.1813]
[1745336883354,1.461992,90750.0,90727.0,0.14307993]
[1745336883650,0.3835,90749.0,90748.0,0.1101379]
[1745336883947,1.1522,90749.0,90731.0,0.1813]
[1745336884138,1.1522,90749.0,90743.0,0.1101431]
[1745336884345,0.3608,90744.0,90743.0,0.1101431]